[Event "Caplin Hastings Masters 2023-24"]
[Site "Hastings"]
[Date "2023.12.29"]
[Round "2.38"]
[White "Gordon, Sean"]
[Black "Park, Inchan"]
[Result "1/2-1/2"]
[ECO "B04"]
[WhiteElo "1968"]
[BlackElo "1768"]
[Annotator "NA"]
[PlyCount "85"]
[EventDate "2023.12.18"]
[EventType "swiss"]
[EventCountry "ENG"]
[SourceTitle "playchess.com"]
[Source "ChessBase"]
[SourceQuality "1"]
[TimeControl "40/6000+30:3000+30"]

1. e4 {[%emt 0:00:05]} Nf6 {[%emt 0:00:32]} 2. e5 {[%emt 0:00:41]} Nd5 {[%emt 0:00:05]} 3. d4 {[%emt 0:00:49]} d6 {[%emt 0:00:06]} 4. c4 {[%emt 0:01:29]} Nb6 {[%emt 0:00:05]} 5. exd6 {[%emt 0:01:00]} cxd6 {[%emt 0:00:05]} 6. Nc3 {[%emt 0:03:18]} g6 {[%emt 0:00:18]} 7. Nf3 {[%emt 0:03:08]} Bg7 {[%emt 0:00:06]} 8. Be3 {[%emt 0:00:59]} O-O {[%emt 0:00:28]} 9. h3 {[%emt 0:01:12]} Bf5 {[%emt 0:01:27]} 10. Be2 {[%emt 0:06:43]} d5 {[%emt 0:01:15]} 11. cxd5 {[%emt 0:05:19]} Nxd5 {[%emt 0:00:16]} 12. Nxd5 {[%emt 0:06:03]} Qxd5 {[%emt 0:00:08]} 13. O-O {[%emt 0:01:00]} Nc6 {[%emt 0:04:37]} 14. Qa4 {[%emt 0:02:54]} a6 {[%emt 0:17:00]} 15. Rac1 {[%emt 0:19:47]} b5 {[%emt 0:41:21]} 16. Qb3 {[%emt 0:09:50]} Qxb3 {[%emt 0:03:09]} 17. axb3 {[%emt 0:00:05]} Nb4 {[%emt 0:00:25]} 18. Ne5 {[%emt 0:03:45]} Be6 {[%emt 0:04:11]} 19. Bd2 {[%emt 0:10:48]} Nd5 {[%emt 0:01:35]} 20. Bf3 {[%emt 0:01:15]} Bxe5 {[%emt 0:25:17]} 21. dxe5 {[%emt 0:01:56]} Rac8 {[%emt 0:00:06]} 22. Bg5 {[%emt 0:05:29]} f6 {[%emt 0:01:11]} 23. Rxc8 {[%emt 0:05:54]} Rxc8 {[%emt 0:00:09]} 24. exf6 {[%emt 0:01:33]} exf6 {[%emt 0:00:17]} 25. Re1 {[%emt 0:00:48]} Kf7 {[%emt 0:01:01]} 26. Bd2 {[%emt 0:03:38]} Rc2 {[%emt 0:01:00]} 27. Bxd5 {[%emt 0:00:47]} Bxd5 {[%emt 0:00:06]} 28. Bc3 {[%emt 0:01:08]} Bxb3 {[%emt 0:00:56]} 29. Re4 {[%emt 0:06:05]} Rc1+ {[%emt 0:00:44]} 30. Kh2 {[%emt 0:00:06]} Rd1 {[%emt 0:00:08]} 31. Kg3 {[%emt 0:01:48]} Rd3+ {[%emt 0:01:11]} 32. f3 {[%emt 0:01:18]} h5 {[%emt 0:01:02]} 33. Rf4 {[%emt 0:02:17]} Rd6 {[%emt 0:00:06]} 34. Kf2 {[%emt 0:01:38]} Bc2 {[%emt 0:01:36]} 35. Rd4 {[%emt 0:00:21]} Rxd4 {[%emt 0:00:59]} 36. Bxd4 {[%emt 0:00:01]} Ke6 {[%emt 0:00:28]} 37. Ke3 {[%emt 0:00:17]} Bb3 {[%emt 0:00:22]} 38. Kd2 {[%emt 0:00:36]} Bd5 {[%emt 0:00:43]} 39. b4 {[%emt 0:00:41]} h4 {[%emt 0:02:47]} 40. Bf2 {[%emt 0:01:30]} g5 {[%emt 0:00:17]} 41. Ke3 {[%emt 0:52:28]} f5 {[%emt 0:52:26]} 42. Be1 {[%emt 0:00:00]} Kf6 {[%emt 0:00:00]} 43. Kf2 {[%emt 0:00:00]} 1/2-1/2

[Event "Caplin Hastings Masters 2023-24"]
[Site "Hastings"]
[Date "2023.12.29"]
[Round "2.39"]
[White "Wilson, Matthew R"]
[Black "Sugden, John N"]
[Result "0-1"]
[ECO "B52"]
[WhiteElo "1771"]
[BlackElo "1968"]
[Annotator "NA"]
[PlyCount "62"]
[EventDate "2023.12.18"]
[EventType "swiss"]
[EventCountry "ENG"]
[SourceTitle "playchess.com"]
[Source "ChessBase"]
[SourceQuality "1"]
[TimeControl "40/6000+30:3000+30"]

1. e4 {[%emt 0:00:01]} c5 {[%emt 0:00:33]} 2. Nf3 {[%emt 0:00:32]} d6 {[%emt 0:00:45]} 3. Bb5+ {[%emt 0:00:10]} Bd7 {[%emt 0:01:09]} 4. Bxd7+ {[%emt 0:00:09]} Qxd7 {[%emt 0:01:01]} 5. c4 {[%emt 0:02:10]} Nc6 {[%emt 0:02:27]} 6. O-O {[%emt 0:05:06]} g6 {[%emt 0:01:19]} 7. d4 {[%emt 0:00:21]} cxd4 {[%emt 0:00:28]} 8. Nxd4 {[%emt 0:00:14]} Bg7 {[%emt 0:00:37]} 9. Be3 {[%emt 0:03:35]} Nf6 {[%emt 0:10:12]} 10. f3 {[%emt 0:01:34]} O-O {[%emt 0:06:06]} 11. Nc3 {[%emt 0:01:04]} Ne8 {[%emt 0:05:04]} 12. Qd2 {[%emt 0:06:46]} Nc7 {[%emt 0:05:52]} 13. Rad1 {[%emt 0:05:37]} Ne5 {[%emt 0:05:48]} 14. b3 {[%emt 0:01:23]} f5 {[%emt 0:04:24]} 15. h4 {[%emt 0:07:52]} Rf7 {[%emt 0:06:37]} 16. h5 {[%emt 0:05:38]} Raf8 {[%emt 0:03:12]} 17. Bh6 {[%emt 0:06:40]} Ne6 {[%emt 0:11:52]} 18. Nxe6 {[%emt 0:12:52]} Qxe6 {[%emt 0:02:03]} 19. Bxg7 {[%emt 0:00:32]} Kxg7 {[%emt 0:05:52]} 20. h6+ {[%emt 0:00:29]} Kg8 {[%emt 0:01:12]} 21. Rfe1 {[%emt 0:03:56]} fxe4 {[%emt 0:09:45]} 22. Rxe4 {[%emt 0:12:53]} Qc8 {[%emt 0:00:54]} 23. Qd4 {[%emt 0:12:47]} Nc6 {[%emt 0:01:11]} 24. Qe3 {[%emt 0:04:03]} b6 {[%emt 0:03:10]} 25. Nd5 {[%emt 0:04:31]} e5 {[%emt 0:04:09]} 26. f4 {[%emt 0:05:19]} Qg4 {[%emt 0:03:49]} 27. Re1 {[%emt 0:04:36]} exf4 {[%emt 0:02:09]} 28. Qc3 {[%emt 0:01:52]} Ne5 {[%emt 0:03:05]} 29. Rxe5 {[%emt 0:01:36]} dxe5 {[%emt 0:00:47]} 30. Qxe5 {[%emt 0:00:32]} f3 {[%emt 0:00:56]} 31. Ne3 {[%emt 0:00:35]} f2+ {[%emt 0:00:00]} 0-1

[Event "Caplin Hastings Masters 2023-24"]
[Site "Hastings"]
[Date "2023.12.29"]
[Round "2.40"]
[White "Metcalfe, Charlie P"]
[Black "Rami, Talab"]
[Result "0-1"]
[ECO "D80"]
[WhiteElo "1760"]
[BlackElo "1947"]
[Annotator "NA"]
[PlyCount "46"]
[EventDate "2023.12.18"]
[EventType "swiss"]
[EventCountry "ENG"]
[SourceTitle "playchess.com"]
[Source "ChessBase"]
[SourceQuality "1"]
[TimeControl "40/6000+30:3000+30"]

1. d4 {[%emt 0:00:02]} Nf6 {[%emt 0:00:09]} 2. c4 {[%emt 0:00:01]} g6 {[%emt 0:00:09]} 3. Nc3 {[%emt 0:00:01]} d5 {[%emt 0:00:06]} 4. Bg5 {[%emt 0:00:11]} Bg7 {[%emt 0:00:32]} 5. Bxf6 {[%emt 0:05:45]} Bxf6 {[%emt 0:00:17]} 6. cxd5 {[%emt 0:02:20]} c5 {[%emt 0:01:45]} 7. dxc6 {[%emt 0:07:09]} Bxd4 {[%emt 0:06:14]} 8. cxb7 {[%emt 0:07:02]} Bxb7 {[%emt 0:00:32]} 9. e3 {[%emt 0:00:58]} Bxc3+ {[%emt 0:00:29]} 10. bxc3 {[%emt 0:00:02]} Qa5 {[%emt 0:01:54]} 11. Qb3 {[%emt 0:06:14]} O-O {[%emt 0:01:05]} 12. Nf3 {[%emt 0:02:06]} Bxf3 {[%emt 0:11:06]} 13. gxf3 {[%emt 0:00:02]} Nd7 {[%emt 0:02:08]} 14. Qb4 {[%emt 0:11:33]} Qc7 {[%emt 0:03:42]} 15. Bg2 {[%emt 0:06:11]} Rab8 {[%emt 0:05:15]} 16. Qa3 {[%emt 0:03:41]} Qc4 {[%emt 0:03:07]} 17. Bf1 {[%emt 0:08:00]} Qc6 {[%emt 0:10:01]} 18. Be2 {[%emt 0:00:49]} Ne5 {[%emt 0:00:29]} 19. O-O {[%emt 0:00:35]} Nxf3+ {[%emt 0:01:54]} 20. Bxf3 {[%emt 0:00:02]} Qxf3 {[%emt 0:00:02]} 21. Qxe7 {[%emt 0:00:51]} Rbe8 {[%emt 0:05:58]} 22. Qd7 {[%emt 0:15:14]} Re5 {[%emt 0:01:38]} 23. h4 {[%emt 0:03:04]} Re4 {[%emt 0:00:57]} 0-1

[Event "Caplin Hastings Masters 2023-24"]
[Site "Hastings"]
[Date "2023.12.29"]
[Round "2.41"]
[White "Batchelor, Paul A"]
[Black "Rastogi, Nayan Keats"]
[Result "1/2-1/2"]
[ECO "E25"]
[WhiteElo "1937"]
[BlackElo "1662"]
[Annotator "NA"]
[PlyCount "62"]
[EventDate "2023.12.18"]
[EventType "swiss"]
[EventCountry "ENG"]
[SourceTitle "playchess.com"]
[Source "ChessBase"]
[SourceQuality "1"]
[TimeControl "40/6000+30:3000+30"]

1. d4 {[%emt 0:00:03]} Nf6 {[%emt 0:00:06]} 2. c4 {[%emt 0:00:18]} e6 {[%emt 0:00:05]} 3. Nc3 {[%emt 0:00:57]} Bb4 {[%emt 0:00:05]} 4. f3 {[%emt 0:00:45]} d5 {[%emt 0:00:25]} 5. a3 {[%emt 0:01:58]} Bxc3+ {[%emt 0:00:12]} 6. bxc3 {[%emt 0:00:06]} c5 {[%emt 0:00:15]} 7. cxd5 {[%emt 0:07:22]} Nxd5 {[%emt 0:00:12]} 8. dxc5 {[%emt 0:00:37]} f5 {[%emt 0:00:40]} 9. c4 {[%emt 0:12:34]} Qh4+ {[%emt 0:01:01]} 10. g3 {[%emt 0:00:12]} Qxc4 {[%emt 0:00:15]} 11. e4 {[%emt 0:00:18]} Qc3+ {[%emt 0:00:19]} 12. Bd2 {[%emt 0:00:10]} Qe5 {[%emt 0:00:19]} 13. Rc1 {[%emt 0:06:11]} fxe4 {[%emt 0:07:54]} 14. Qa4+ {[%emt 0:03:19]} Bd7 {[%emt 0:05:56]} 15. Qxe4 {[%emt 0:00:23]} Qxe4+ {[%emt 0:01:08]} 16. fxe4 {[%emt 0:01:20]} Nf6 {[%emt 0:00:48]} 17. Bg2 {[%emt 0:03:09]} Bc6 {[%emt 0:02:06]} 18. Bc3 {[%emt 0:13:18]} Nbd7 {[%emt 0:27:29]} 19. Bxf6 {[%emt 0:09:39]} Nxf6 {[%emt 0:03:17]} 20. Ne2 {[%emt 0:05:34]} Bxe4 {[%emt 0:10:53]} 21. Bxe4 {[%emt 0:01:53]} Nxe4 {[%emt 0:00:15]} 22. Rc4 {[%emt 0:02:15]} Nf6 {[%emt 0:00:49]} 23. O-O {[%emt 0:04:01]} O-O {[%emt 0:00:33]} 24. Nd4 {[%emt 0:03:43]} Rfe8 {[%emt 0:02:30]} 25. Nb5 {[%emt 0:00:53]} Re7 {[%emt 0:09:09]} 26. Rb1 {[%emt 0:01:38]} Nd5 {[%emt 0:11:17]} 27. Nd6 {[%emt 0:16:03]} b6 {[%emt 0:00:02]} 28. c6 {[%emt 0:00:01]} Rd8 29. Nb7 {[%emt 0:00:01]} Rc8 {[%emt 0:00:01]} 30. Nd6 {[%emt 0:00:02]} Rd8 31. Nb7 Rc8 {[%emt 0:00:09]} 1/2-1/2

[Event "Caplin Hastings Masters 2023-24"]
[Site "Hastings"]
[Date "2023.12.29"]
[Round "2.42"]
[White "Alcindor, Samuel"]
[Black "Fryer, David W"]
[Result "1/2-1/2"]
[ECO "C00"]
[WhiteElo "1714"]
[BlackElo "1914"]
[Annotator "NA"]
[PlyCount "128"]
[EventDate "2023.12.18"]
[EventType "swiss"]
[EventCountry "ENG"]
[SourceTitle "playchess.com"]
[Source "ChessBase"]
[SourceQuality "1"]
[TimeControl "40/6000+30:3000+30"]

1. c4 {[%emt 0:00:11]} Nf6 {[%emt 0:00:11]} 2. Nc3 {[%emt 0:00:06]} e6 {[%emt 0:00:13]} 3. e4 {[%emt 0:01:04]} d5 {[%emt 0:01:23]} 4. cxd5 {[%emt 0:01:25]} exd5 {[%emt 0:00:38]} 5. exd5 {[%emt 0:00:11]} Nxd5 {[%emt 0:02:00]} 6. Nf3 {[%emt 0:04:17]} Be7 {[%emt 0:04:29]} 7. Bc4 {[%emt 0:01:52]} Nb6 {[%emt 0:03:36]} 8. Bb3 {[%emt 0:00:29]} O-O {[%emt 0:02:31]} 9. h3 {[%emt 0:07:50]} Bf5 {[%emt 0:06:52]} 10. d4 {[%emt 0:02:01]} N8d7 {[%emt 0:10:11]} 11. O-O {[%emt 0:00:56]} c6 {[%emt 0:04:36]} 12. Re1 {[%emt 0:02:18]} h6 {[%emt 0:04:37]} 13. Ne5 {[%emt 0:15:10]} Nf6 {[%emt 0:04:15]} 14. Qf3 {[%emt 0:03:31]} Bh7 {[%emt 0:09:29]} 15. Bxh6 {[%emt 0:18:08]} gxh6 {[%emt 0:04:21]} 16. Qg3+ {[%emt 0:00:31]} Kh8 {[%emt 0:00:26]} 17. Nxf7+ {[%emt 0:00:42]} Rxf7 {[%emt 0:00:30]} 18. Bxf7 {[%emt 0:00:09]} Qf8 {[%emt 0:05:05]} 19. Bb3 {[%emt 0:01:29]} Bd6 {[%emt 0:02:12]} 20. Qh4 {[%emt 0:02:12]} Nfd5 {[%emt 0:07:11]} 21. Re6 {[%emt 0:02:40]} Bf4 {[%emt 0:00:50]} 22. Nxd5 {[%emt 0:04:01]} Nxd5 {[%emt 0:00:44]} 23. Bxd5 {[%emt 0:02:20]} Bg5 {[%emt 0:00:22]} 24. Qh5 {[%emt 0:00:52]} cxd5 {[%emt 0:00:52]} 25. Rae1 {[%emt 0:01:05]} Bg8 {[%emt 0:01:12]} 26. R6e5 {[%emt 0:11:14]} Qg7 {[%emt 0:04:17]} 27. Re8 {[%emt 0:15:29]} Rxe8 {[%emt 0:00:22]} 28. Re3 {[%emt 0:00:24]} Re7 29. Rxe7 {[%emt 0:00:32]} Qe5 {[%emt 0:10:42]} 30. Re8 Qxd4 {[%emt 0:00:59]} 31. Qf7 {[%emt 0:01:17]} Qg7 {[%emt 0:00:18]} 32. Qxd5 {[%emt 0:00:22]} Kh7 {[%emt 0:03:14]} 33. Qe4+ {[%emt 0:01:16]} Kh8 {[%emt 0:00:59]} 34. h4 {[%emt 0:04:02]} Bf6 {[%emt 0:03:23]} 35. Rb8 {[%emt 0:00:33]} Bxb2 {[%emt 0:03:28]} 36. Rxb7 {[%emt 0:00:07]} Qd4 {[%emt 0:02:04]} 37. Qxd4+ {[%emt 0:05:17]} Bxd4 {[%emt 0:00:10]} 38. a3 {[%emt 0:00:24]} Bb6 {[%emt 0:00:41]} 39. g3 {[%emt 0:01:23]} Bc4 {[%emt 0:01:40]} 40. a4 {[%emt 0:01:02]} Kg8 {[%emt 0:05:29]} 41. a5 {[%emt 0:50:29]} Bxa5 {[%emt 0:50:24]} 42. Rxa7 {[%emt 0:00:08]} Bd2 {[%emt 0:02:16]} 43. Rd7 {[%emt 0:00:45]} Ba5 {[%emt 0:00:49]} 44. Kg2 {[%emt 0:00:26]} Bf7 {[%emt 0:00:49]} 45. Kf3 {[%emt 0:00:54]} h5 {[%emt 0:00:59]} 46. Kf4 {[%emt 0:00:30]} Kg7 {[%emt 0:00:00]} 47. f3 {[%emt 0:00:00]} Be1 {[%emt 0:00:00]} 48. Re7 {[%emt 0:00:00]} Bf2 {[%emt 0:00:00]} 49. Re5 {[%emt 0:00:00]} Kf6 {[%emt 0:00:00]} 50. Rf5+ {[%emt 0:00:00]} Kg6 {[%emt 0:00:00]} 51. Ra5 {[%emt 0:00:00]} Be1 {[%emt 0:00:00]} 52. Ra6+ {[%emt 0:00:00]} Kg7 {[%emt 0:00:00]} 53. Rd6 {[%emt 0:00:00]} Ba5 {[%emt 0:00:00]} 54. Rd1 {[%emt 0:00:00]} Bc7+ {[%emt 0:00:00]} 55. Ke3 {[%emt 0:00:00]} Bb6+ {[%emt 0:00:00]} 56. Ke4 {[%emt 0:00:00]} Bg6+ {[%emt 0:00:00]} 57. Kf4 {[%emt 0:00:00]} Bc7+ {[%emt 0:00:00]} 58. Kg5 {[%emt 0:00:00]} Bxg3 {[%emt 0:00:00]} 59. Rd7+ {[%emt 0:00:00]} Bf7 {[%emt 0:00:00]} 60. Rxf7+ {[%emt 0:00:00]} Kxf7 {[%emt 0:00:00]} 61. Kxh5 {[%emt 0:00:00]} Bf4 {[%emt 0:00:00]} 62. Kg4 {[%emt 0:00:00]} Bd2 {[%emt 0:00:00]} 63. Kf5 {[%emt 0:00:00]} Kg7 {[%emt 0:00:00]} 64. f4 {[%emt 0:00:00]} Bxf4 {[%emt 0:00:00]} 1/2-1/2

[Event "Caplin Hastings Masters 2023-24"]
[Site "Hastings"]
[Date "2023.12.29"]
[Round "2.43"]
[White "Honey, Luke Anthony"]
[Black "Prudent, Sylvio"]
[Result "1-0"]
[ECO "B07"]
[WhiteElo "1907"]
[BlackElo "1639"]
[Annotator "NA"]
[PlyCount "77"]
[EventDate "2023.12.18"]
[EventType "swiss"]
[EventCountry "ENG"]
[SourceTitle "playchess.com"]
[Source "ChessBase"]
[SourceQuality "1"]
[TimeControl "40/6000+30:3000+30"]

1. e4 {[%emt 0:00:04]} d6 {[%emt 0:00:05]} 2. d4 {[%emt 0:00:08]} Nf6 {[%emt 0:00:09]} 3. f3 {[%emt 0:00:05]} g6 {[%emt 0:00:23]} 4. Be3 {[%emt 0:00:12]} Bg7 {[%emt 0:00:38]} 5. Nc3 {[%emt 0:00:11]} b6 {[%emt 0:07:48]} 6. Qd2 {[%emt 0:01:43]} Bb7 {[%emt 0:00:32]} 7. Bd3 {[%emt 0:01:35]} Nc6 {[%emt 0:00:53]} 8. a3 {[%emt 0:05:22]} a6 {[%emt 0:18:21]} 9. Nge2 {[%emt 0:01:21]} Nd7 {[%emt 0:01:39]} 10. O-O-O {[%emt 0:04:56]} Na7 {[%emt 0:04:09]} 11. Bh6 {[%emt 0:04:07]} Bxh6 {[%emt 0:01:42]} 12. Qxh6 {[%emt 0:00:11]} e5 {[%emt 0:00:49]} 13. f4 {[%emt 0:09:29]} exd4 {[%emt 0:15:44]} 14. Nxd4 {[%emt 0:01:14]} Qe7 {[%emt 0:01:28]} 15. Rhe1 {[%emt 0:13:24]} O-O-O {[%emt 0:02:40]} 16. Nd5 {[%emt 0:04:13]} Qe8 {[%emt 0:01:22]} 17. c4 {[%emt 0:05:52]} Nc5 {[%emt 0:01:35]} 18. Bc2 {[%emt 0:00:51]} Nc6 {[%emt 0:04:22]} 19. Nf3 {[%emt 0:04:17]} b5 {[%emt 0:07:04]} 20. b4 {[%emt 0:08:14]} Nd7 {[%emt 0:08:49]} 21. cxb5 {[%emt 0:02:06]} axb5 {[%emt 0:00:21]} 22. Nc3 {[%emt 0:02:29]} Na7 {[%emt 0:08:52]} 23. Nd4 {[%emt 0:06:38]} Nb6 {[%emt 0:01:08]} 24. Qh3+ {[%emt 0:02:22]} Kb8 {[%emt 0:00:42]} 25. Qd3 {[%emt 0:01:02]} Nc4 {[%emt 0:02:23]} 26. a4 {[%emt 0:03:17]} c5 {[%emt 0:08:43]} 27. Ndxb5 {[%emt 0:07:32]} Na3 {[%emt 0:03:47]} 28. Nxd6 {[%emt 0:03:01]} Qe6 {[%emt 0:07:12]} 29. bxc5 {[%emt 0:01:24]} Nxc2 {[%emt 0:00:26]} 30. Kxc2 {[%emt 0:00:27]} Bc6 {[%emt 0:00:33]} 31. Qc4 {[%emt 0:02:20]} Qg4 {[%emt 0:00:55]} 32. g3 {[%emt 0:01:32]} Qf3 {[%emt 0:00:37]} 33. Nd5 {[%emt 0:03:21]} Rd7 {[%emt 0:00:36]} 34. Rb1+ {[%emt 0:00:48]} Rb7 {[%emt 0:00:32]} 35. Nxb7 {[%emt 0:02:06]} Bxb7 {[%emt 0:00:18]} 36. c6 {[%emt 0:01:15]} Nxc6 {[%emt 0:00:23]} 37. Rxb7+ {[%emt 0:00:24]} Kxb7 {[%emt 0:00:25]} 38. Rb1+ {[%emt 0:00:06]} Ka7 {[%emt 0:00:23]} 39. Qc5+ {[%emt 0:00:11]} 1-0

[Event "Caplin Hastings Masters 2023-24"]
[Site "Hastings"]
[Date "2023.12.29"]
[Round "2.44"]
[White "Butt, Laurence"]
[Black "Norinkeviciute, Rasa"]
[Result "1/2-1/2"]
[ECO "D01"]
[WhiteElo "1688"]
[BlackElo "1905"]
[Annotator "NA"]
[PlyCount "131"]
[EventDate "2023.12.18"]
[EventType "swiss"]
[EventCountry "ENG"]
[SourceTitle "playchess.com"]
[Source "ChessBase"]
[SourceQuality "1"]
[TimeControl "40/6000+30:3000+30"]

1. d4 {[%emt 0:00:58]} Nf6 {[%emt 0:01:20]} 2. Bg5 {[%emt 0:00:29]} d5 {[%emt 0:00:52]} 3. Nf3 {[%emt 0:00:46]} Nbd7 {[%emt 0:00:21]} 4. Nc3 {[%emt 0:00:28]} c6 {[%emt 0:01:25]} 5. Qd3 {[%emt 0:01:37]} Qb6 {[%emt 0:03:11]} 6. O-O-O {[%emt 0:03:20]} e6 {[%emt 0:01:28]} 7. Ne5 {[%emt 0:01:24]} Bb4 {[%emt 0:09:02]} 8. Nxd7 {[%emt 0:00:36]} Bxd7 {[%emt 0:00:46]} 9. Bxf6 {[%emt 0:00:09]} gxf6 {[%emt 0:00:06]} 10. a3 {[%emt 0:02:23]} Bd6 {[%emt 0:04:30]} 11. e4 {[%emt 0:00:16]} O-O-O {[%emt 0:00:22]} 12. Qf3 {[%emt 0:01:12]} Be7 {[%emt 0:02:58]} 13. g3 {[%emt 0:02:21]} Kb8 {[%emt 0:04:44]} 14. Bh3 {[%emt 0:00:25]} dxe4 {[%emt 0:06:38]} 15. Qxe4 {[%emt 0:01:53]} Bd6 {[%emt 0:00:31]} 16. Rhe1 {[%emt 0:02:45]} f5 {[%emt 0:08:04]} 17. Qe3 {[%emt 0:07:47]} h5 {[%emt 0:09:17]} 18. Bf1 {[%emt 0:02:01]} Qc7 {[%emt 0:16:53]} 19. f4 {[%emt 0:12:37]} h4 {[%emt 0:00:00]} 20. Ne2 {[%emt 0:03:23]} hxg3 {[%emt 0:00:00]} 21. hxg3 {[%emt 0:04:28]} Rdg8 {[%emt 0:00:00]} 22. Kb1 {[%emt 0:00:35]} Bc8 {[%emt 0:04:44]} 23. Bg2 {[%emt 0:00:47]} Rh7 {[%emt 0:18:26]} 24. Bf3 {[%emt 0:00:34]} Rhg7 {[%emt 0:01:11]} 25. Qf2 {[%emt 0:04:11]} Qb6 {[%emt 0:01:00]} 26. Rd3 {[%emt 0:01:51]} Qc7 {[%emt 0:03:07]} 27. c4 {[%emt 0:00:44]} c5 {[%emt 0:00:43]} 28. Red1 {[%emt 0:04:01]} f6 {[%emt 0:03:44]} 29. b4 {[%emt 0:01:49]} cxb4 {[%emt 0:03:33]} 30. c5 {[%emt 0:00:17]} Bf8 {[%emt 0:00:29]} 31. axb4 {[%emt 0:00:19]} Bd7 {[%emt 0:01:24]} 32. Ra3 {[%emt 0:13:11]} Bc6 {[%emt 0:03:43]} 33. d5 {[%emt 0:04:39]} Bxd5 {[%emt 0:01:28]} 34. Bxd5 {[%emt 0:00:16]} exd5 {[%emt 0:00:03]} 35. Rxd5 {[%emt 0:01:16]} Qc6 {[%emt 0:01:12]} 36. Qd4 {[%emt 0:01:13]} Be7 {[%emt 0:00:22]} 37. Rd3 {[%emt 0:03:13]} Rc8 {[%emt 0:00:16]} 38. Qc4 {[%emt 0:02:13]} Qe6 {[%emt 0:00:32]} 39. Qc2 {[%emt 0:02:36]} Qe4 {[%emt 0:00:20]} 40. Qd2 {[%emt 0:00:54]} Rh7 {[%emt 0:00:49]} 41. R5d4 {[%emt 0:55:36]} Rh1+ {[%emt 0:02:49]} 42. Kb2 {[%emt 0:00:00]} Qc6 {[%emt 0:01:58]} 43. Nc3 {[%emt 0:00:00]} Rg1 {[%emt 0:11:13]} 44. Qe3 {[%emt 0:00:00]} Rg2+ {[%emt 0:01:36]} 45. Kb3 {[%emt 0:00:00]} Bf8 {[%emt 0:06:52]} 46. Rd8 {[%emt 0:00:00]} Rh2 {[%emt 0:12:33]} 47. R3d7 {[%emt 0:00:00]} Rh8 {[%emt 0:07:55]} 48. Qe8 {[%emt 0:00:00]} Bxc5 {[%emt 0:05:57]} 49. Rxc8+ {[%emt 0:00:00]} Qxc8 {[%emt 0:00:14]} 50. Qxc8+ {[%emt 0:00:00]} Kxc8 {[%emt 0:00:12]} 51. Rd5 {[%emt 0:00:00]} Be7 {[%emt 0:00:46]} 52. Rxf5 {[%emt 0:00:00]} Rh3 {[%emt 0:00:33]} 53. Ne4 {[%emt 0:00:00]} Kd7 {[%emt 0:00:25]} 54. Kc4 {[%emt 0:00:00]} Ke6 {[%emt 0:00:21]} 55. Rb5 {[%emt 0:00:00]} b6 {[%emt 0:00:46]} 56. f5+ {[%emt 0:00:00]} Kd7 {[%emt 0:00:50]} 57. Rd5+ {[%emt 0:00:00]} Kc7 {[%emt 0:00:34]} 58. Rd3 {[%emt 0:00:00]} a5 {[%emt 0:01:34]} 59. bxa5 {[%emt 0:00:00]} bxa5 {[%emt 0:00:02]} 60. Kb5 {[%emt 0:00:00]} Rh5 {[%emt 0:01:07]} 61. Rd5 {[%emt 0:00:00]} Rh1 {[%emt 0:00:32]} 62. Kxa5 {[%emt 0:00:00]} Kc6 {[%emt 0:00:44]} 63. Rd4 {[%emt 0:00:00]} Ra1+ {[%emt 0:01:22]} 64. Ra4 {[%emt 0:00:00]} Rxa4+ {[%emt 0:00:47]} 65. Kxa4 {[%emt 0:00:00]} Kd5 {[%emt 0:00:06]} 66. Nxf6+ {[%emt 0:00:00]} 1/2-1/2

[Event "Caplin Hastings Masters 2023-24"]
[Site "Hastings"]
[Date "2023.12.29"]
[Round "2.45"]
[White "Suez-Panama, Gilles"]
[Black "Nainika, Gupta"]
[Result "1/2-1/2"]
[ECO "A46"]
[WhiteElo "1868"]
[BlackElo "1543"]
[Annotator "NA"]
[PlyCount "40"]
[EventDate "2023.12.18"]
[EventType "swiss"]
[EventCountry "ENG"]
[SourceTitle "playchess.com"]
[Source "ChessBase"]
[SourceQuality "1"]
[TimeControl "40/6000+30:3000+30"]

1. Nf3 {[%emt 0:00:03]} Nf6 {[%emt 0:02:43]} 2. d4 {[%emt 0:00:46]} e6 {[%emt 0:01:15]} 3. e3 {[%emt 0:01:27]} c5 {[%emt 0:00:52]} 4. Bd3 {[%emt 0:00:39]} Nc6 {[%emt 0:02:36]} 5. c3 {[%emt 0:07:20]} d6 {[%emt 0:03:58]} 6. O-O {[%emt 0:02:05]} Be7 {[%emt 0:02:28]} 7. Qe2 {[%emt 0:03:59]} O-O {[%emt 0:03:43]} 8. Rd1 {[%emt 0:00:58]} Qc7 {[%emt 0:05:00]} 9. Nbd2 {[%emt 0:04:07]} a6 {[%emt 0:02:26]} 10. a4 {[%emt 0:04:06]} Bd7 {[%emt 0:01:18]} 11. b3 {[%emt 0:06:27]} Rac8 {[%emt 0:09:55]} 12. Bb2 {[%emt 0:02:04]} Nd5 {[%emt 0:04:05]} 13. Rac1 {[%emt 0:03:51]} f5 {[%emt 0:03:24]} 14. c4 {[%emt 0:01:47]} Ndb4 {[%emt 0:01:53]} 15. Bb1 {[%emt 0:01:17]} Bf6 {[%emt 0:04:15]} 16. Nf1 {[%emt 0:03:41]} Na5 {[%emt 0:04:02]} 17. N1d2 {[%emt 0:02:58]} Nac6 {[%emt 0:04:53]} 18. Nf1 {[%emt 0:03:01]} Na5 {[%emt 0:06:19]} 19. N1d2 {[%emt 0:03:22]} Nac6 {[%emt 0:04:09]} 20. Nf1 {[%emt 0:06:05]} Na5 {[%emt 0:00:36]} 1/2-1/2

[Event "Caplin Hastings Masters 2023-24"]
[Site "Hastings"]
[Date "2023.12.29"]
[Round "2.46"]
[White "Teh, Wee Zhun"]
[Black "Kim, Sumin"]
[Result "1-0"]
[ECO "D45"]
[WhiteElo "1858"]
[BlackElo "1358"]
[Annotator "NA"]
[PlyCount "61"]
[EventDate "2023.12.18"]
[EventType "swiss"]
[EventCountry "ENG"]
[SourceTitle "playchess.com"]
[Source "ChessBase"]
[SourceQuality "1"]
[TimeControl "40/6000+30:3000+30"]

1. d4 {[%emt 0:00:07]} d5 {[%emt 0:00:44]} 2. c4 {[%emt 0:01:07]} e6 {[%emt 0:00:13]} 3. Nf3 {[%emt 0:00:53]} c6 {[%emt 0:02:08]} 4. Nc3 {[%emt 0:03:17]} Nf6 {[%emt 0:04:37]} 5. e3 {[%emt 0:00:52]} a6 {[%emt 0:00:43]} 6. Qc2 {[%emt 0:02:52]} Bd6 {[%emt 0:03:06]} 7. b3 {[%emt 0:02:14]} Nbd7 {[%emt 0:01:24]} 8. Be2 {[%emt 0:02:33]} Qe7 {[%emt 0:01:21]} 9. Bb2 {[%emt 0:06:49]} dxc4 {[%emt 0:06:54]} 10. bxc4 {[%emt 0:00:44]} b5 {[%emt 0:04:23]} 11. O-O {[%emt 0:03:06]} e5 {[%emt 0:05:40]} 12. Nh4 {[%emt 0:05:11]} Nf8 {[%emt 0:13:15]} 13. Nf5 {[%emt 0:04:04]} Bxf5 {[%emt 0:00:36]} 14. Qxf5 {[%emt 0:00:09]} Ng6 {[%emt 0:02:15]} 15. Bf3 {[%emt 0:02:42]} O-O {[%emt 0:05:54]} 16. Bxc6 {[%emt 0:11:29]} Rac8 {[%emt 0:04:38]} 17. Nd5 {[%emt 0:05:25]} Nxd5 {[%emt 0:08:26]} 18. cxd5 {[%emt 0:00:45]} e4 {[%emt 0:04:44]} 19. g3 {[%emt 0:17:09]} Qa7 {[%emt 0:10:26]} 20. Qxe4 {[%emt 0:01:44]} Ne7 {[%emt 0:01:16]} 21. Rfc1 {[%emt 0:04:36]} Nxc6 {[%emt 0:06:08]} 22. Rxc6 {[%emt 0:01:10]} Rxc6 {[%emt 0:01:57]} 23. dxc6 {[%emt 0:00:10]} b4 {[%emt 0:02:43]} 24. d5 {[%emt 0:00:58]} Qc7 {[%emt 0:06:04]} 25. Rc1 {[%emt 0:01:30]} a5 {[%emt 0:02:56]} 26. Qd4 {[%emt 0:04:26]} f6 {[%emt 0:01:08]} 27. Qe4 {[%emt 0:00:48]} a4 {[%emt 0:03:26]} 28. Bd4 {[%emt 0:07:31]} b3 {[%emt 0:05:03]} 29. axb3 {[%emt 0:00:00]} axb3 {[%emt 0:00:43]} 30. Qe6+ {[%emt 0:00:00]} Kh8 {[%emt 0:01:05]} 31. Qd7 {[%emt 0:00:00]} 1-0